bitfinex/quotes_BTCUSD_20250525
["timestamp","ask_amount","ask_price","bid_price","bid_amount"]
[1748186420971,0.004,107010.0,107000.0,1.82878802]
[1748186422226,0.0224,107010.0,107000.0,1.82878802]
[1748186423278,0.004,107010.0,107000.0,1.82878802]
[1748186424722,0.004,107010.0,107000.0,1.89502978]
[1748186426021,0.001,107010.0,107000.0,1.89502978]
[1748186426403,0.002,107010.0,107000.0,1.89602978]
[1748186426610,0.001,107010.0,107000.0,1.89602978]
[1748186426813,0.001,107010.0,107000.0,1.82978802]
[1748186427010,0.002,107010.0,107000.0,1.83078802]
[1748186427232,0.002,107010.0,107000.0,1.68154802]
[1748186427450,0.002,107010.0,107000.0,1.83078802]
[1748186427678,0.04,107010.0,107000.0,1.68154802]
[1748186427886,0.04,107010.0,107000.0,1.53166802]
[1748186428102,0.04,107010.0,107000.0,1.87166802]
[1748186428517,0.04,107010.0,107000.0,1.53166802]
[1748186428721,0.12954556,107010.0,107000.0,1.17817302]
[1748186428933,0.12954556,107010.0,107000.0,1.51817302]
[1748186429775,0.12954556,107010.0,107000.0,1.50801302]
[1748186430225,0.13840791,107010.0,107000.0,1.50801302]
[1748186430432,0.10040791,107010.0,107000.0,1.31789302]
[1748186430649,0.10040791,107010.0,107000.0,1.34573478]
[1748186430862,0.09154556,107010.0,107000.0,1.34573478]
[1748186431062,0.12954556,107010.0,107000.0,1.31789302]
[1748186431924,0.12954556,107010.0,107000.0,1.36570502]
[1748186432142,0.12954556,107010.0,107000.0,1.31770702]
[1748186432576,0.12954556,107010.0,107000.0,1.21444402]
[1748186432975,0.12954556,107010.0,107000.0,0.87444402]
[1748186433208,0.13841226,107010.0,107000.0,0.85990317]
[1748186433403,0.14133261,107010.0,107000.0,0.85990317]
[1748186433809,0.14133261,107010.0,107000.0,1.19990317]
[1748186434450,0.15243165,107010.0,107000.0,1.19990317]
[1748186434701,0.1495113,107010.0,107000.0,2.14028178]
[1748186434883,0.1495113,107010.0,107000.0,1.44756902]
[1748186435126,0.1495113,107010.0,107000.0,1.39170596]
[1748186435545,0.1495113,107010.0,107000.0,1.31957596]
[1748186435757,0.13841226,107010.0,107000.0,1.31957596]
[1748186436594,0.0108667,107010.0,107000.0,1.51952876]
[1748186436813,0.0108667,107010.0,107000.0,1.51615772]
[1748186437450,0.002,107010.0,107000.0,1.49665772]
[1748186437862,0.002,107010.0,107000.0,1.46881596]
[1748186438625,0.11044556,107010.0,107000.0,1.08209691]
[1748186438829,0.12954556,107010.0,107000.0,1.23133691]
[1748186439050,0.09154556,107010.0,107000.0,1.24587776]
[1748186439661,0.12954556,107010.0,107000.0,1.23133691]
[1748186439841,0.12954556,107010.0,107000.0,1.08209691]
[1748186440442,0.13841565,107010.0,107000.0,1.08209691]
[1748186440652,0.01087009,107010.0,107000.0,1.09663776]
[1748186441653,0.002,107010.0,107000.0,1.09663776]
[1748186444152,0.002,107010.0,107000.0,1.43827776]
[1748186445227,0.002,107010.0,107000.0,1.50271952]
[1748186445826,0.002,107010.0,107000.0,1.47487776]
[1748186445981,0.002,107010.0,107000.0,1.43827776]
[1748186447061,0.002,107010.0,107000.0,1.45777776]
[1748186447410,0.002,107010.0,107000.0,1.47697776]
[1748186448567,0.002,107010.0,107000.0,1.43827776]
[1748186451568,0.002,107010.0,107000.0,1.50321952]
[1748186451739,0.002,107010.0,107000.0,1.45677776]
[1748186452617,0.002,107010.0,107000.0,1.43827776]
[1748186456643,0.002,107010.0,107000.0,1.47557776]
[1748186456804,0.002,107010.0,107000.0,1.50341952]
[1748186457827,0.04736984,107030.0,107010.0,0.35454085]
[1748186458040,0.1369154,107030.0,107020.0,1.06504661]
[1748186458241,0.1369154,107030.0,107020.0,1.05805]
[1748186458697,0.1369154,107030.0,107020.0,1.20729]
[1748186458867,0.1369154,107030.0,107020.0,1.22183085]
[1748186459067,0.13004556,107030.0,107020.0,1.05815726]
[1748186459298,0.13004556,107030.0,107020.0,0.00010726]
[1748186459468,0.13404556,107030.0,107020.0,0.00010726]
[1748186459674,0.13404556,107030.0,107020.0,0.34010726]
[1748186459875,0.1451446,107030.0,107020.0,0.34010726]
[1748186460361,0.1431446,107030.0,107020.0,0.34010726]
[1748186460762,0.17749494,107030.0,107020.0,0.34110726]
[1748186461169,0.17527121,107030.0,107020.0,0.34110726]
[1748186461384,0.17527121,107030.0,107020.0,0.00110726]
[1748186461608,0.17819093,107030.0,107020.0,0.00110726]
[1748186462437,0.17527121,107030.0,107020.0,0.00110726]
[1748186463277,0.17527121,107030.0,107020.0,0.34110726]
[1748186463487,0.17527121,107030.0,107020.0,0.83025726]
[1748186463715,0.17527121,107030.0,107020.0,1.30052626]
[1748186463903,0.17527121,107030.0,107020.0,1.05322426]
[1748186464306,0.17527121,107030.0,107020.0,0.89939026]
[1748186464774,0.17527121,107030.0,107020.0,0.83867526]
[1748186464993,0.13677121,107030.0,107020.0,0.98791526]
[1748186465707,0.13677121,107030.0,107020.0,0.98605357]
[1748186466277,0.1278959,107030.0,107020.0,0.98605357]
[1748186466953,0.1651959,107030.0,107020.0,0.95848457]
[1748186467132,0.1651959,107030.0,107020.0,0.91592157]
[1748186467924,0.13384556,107030.0,107020.0,0.91592157]
[1748186468750,0.09654556,107030.0,107020.0,0.93046242]
[1748186468896,0.007,107030.0,107020.0,0.95830418]
[1748186469123,0.007,107030.0,107020.0,0.97630418]
[1748186469351,0.007,107030.0,107020.0,0.93046242]
[1748186469872,0.007,107030.0,107020.0,0.59117685]
[1748186470202,0.0373,107050.0,107020.0,0.59117685]
[1748186470404,0.12684556,107040.0,107030.0,2.852079]
[1748186470607,0.12684556,107040.0,107030.0,1.226702]
[1748186471857,0.12684556,107040.0,107030.0,1.566702]
[1748186472058,0.12984556,107040.0,107030.0,1.567702]
[1748186472671,0.12984556,107040.0,107030.0,1.568702]
[1748186472900,0.13484556,107040.0,107030.0,1.568702]
[1748186477414,0.13484556,107040.0,107030.0,1.717902]
[1748186478695,0.13484556,107040.0,107030.0,1.675815]
[1748186479085,0.13484556,107040.0,107030.0,1.582039]
[1748186479711,0.13484556,107040.0,107030.0,1.568408]
[1748186480496,0.13484556,107040.0,107030.0,0.342]
[1748186480704,0.13484556,107040.0,107030.0,0.002]
[1748186480913,0.14664651,107040.0,107030.0,0.002]
[1748186481112,0.14372687,107040.0,107030.0,0.002]
[1748186481312,0.14664649,107040.0,107030.0,0.002]
[1748186481766,0.16422255,107040.0,107030.0,0.002]
[1748186482112,0.16130293,107040.0,107030.0,0.002]
[1748186482738,0.15774549,107040.0,107030.0,0.002]
[1748186483144,0.17801194,107040.0,107030.0,0.002]
[1748186485217,0.17509236,107040.0,107030.0,0.002]
[1748186485419,0.17801194,107040.0,107030.0,0.002]
[1748186487118,0.17801194,107040.0,107020.0,0.34]
[1748186487369,0.05548887,107010.0,107000.0,0.61310191]
[1748186487588,0.72865719,107010.0,107000.0,0.61310191]
[1748186487811,0.70704722,107010.0,107000.0,0.61310191]
[1748186488233,0.7530546,107010.0,107000.0,0.61310191]
[1748186488351,0.55595029,107010.0,107000.0,0.61310191]
[1748186488561,0.58395938,107010.0,107000.0,0.61310191]
[1748186488764,0.7708578,107010.0,107000.0,0.61310191]
[1748186488959,0.91071306,107010.0,107000.0,0.61310191]
[1748186489188,0.91728046,107010.0,107000.0,0.61310191]
[1748186489392,0.90793572,107010.0,107000.0,0.61310191]
[1748186490003,0.92375748,107010.0,107000.0,0.61310191]
[1748186490206,0.92141274,107010.0,107000.0,0.61310191]
[1748186490423,0.93075748,107010.0,107000.0,0.61310191]
[1748186490780,0.91261402,107010.0,107000.0,0.61310191]
[1748186491347,0.92195876,107010.0,107000.0,0.61310191]
[1748186492126,0.9236816,107010.0,107000.0,0.61310191]
[1748186492287,0.94237108,107010.0,107000.0,0.61310191]
[1748186492490,0.93302625,107010.0,107000.0,0.61310191]
[1748186492794,0.85791223,107010.0,107000.0,0.61310191]
[1748186493218,0.93187274,107010.0,107000.0,0.61310191]
[1748186493937,0.93187274,107010.0,107000.0,0.58498414]
[1748186494155,1.24990348,107010.0,107000.0,0.4104508]
[1748186494379,1.21620348,107010.0,107000.0,0.3563508]
[1748186494587,0.55568374,106960.0,106950.0,0.0160077]
[1748186494789,1.16090952,106960.0,106950.0,0.01614893]
[1748186494995,1.17090952,106960.0,106950.0,0.01614893]
[1748186495170,1.12090952,106960.0,106950.0,0.01614893]
[1748186495385,0.51428345,106960.0,106950.0,0.01614893]
[1748186495618,0.52316476,106960.0,106950.0,0.01614893]
[1748186496040,0.53226476,106960.0,106950.0,0.01614893]
[1748186496267,0.50538783,106960.0,106950.0,0.01614893]
[1748186496470,0.00935025,106940.0,106930.0,6e-05]
[1748186496746,0.2604089,106940.0,106930.0,0.0001538]
[1748186496945,0.25748623,106940.0,106930.0,0.0001538]
[1748186497151,0.26683683,106940.0,106930.0,0.0001538]
[1748186497560,0.26683674,106940.0,106930.0,0.0001538]
[1748186497763,0.47255973,106940.0,106930.0,0.0001538]
[1748186497991,0.4566082,106940.0,106930.0,0.0001538]
[1748186498191,0.4616082,106940.0,106930.0,0.0001538]
[1748186498395,0.6458882,106940.0,106930.0,0.0001538]
[1748186498612,0.6958882,106940.0,106930.0,0.0001538]
[1748186498819,0.71042905,106940.0,106930.0,0.0001538]
[1748186499023,0.72042905,106940.0,106930.0,0.0001538]
[1748186499235,0.72931036,106940.0,106930.0,0.0001538]
[1748186499442,0.71484951,106940.0,106930.0,0.0001538]
[1748186499653,0.05,106880.0,106840.0,0.0160077]
[1748186499861,0.05,106880.0,106840.0,0.01651214]
[1748186499862,0.08954556,106850.0,106840.0,0.01651214]
[1748186500068,0.54179056,106850.0,106840.0,0.01651214]
[1748186500276,0.74476104,106850.0,106840.0,0.01651214]
[1748186500485,0.27812403,106850.0,106840.0,0.01651214]
[1748186500697,0.29684124,106850.0,106840.0,0.01651214]
[1748186500897,0.11944556,106850.0,106840.0,0.01651214]
[1748186501099,0.40944556,106850.0,106840.0,0.01651214]
[1748186501306,0.11244556,106850.0,106840.0,0.01651214]
[1748186501511,0.09254556,106850.0,106840.0,0.05571214]
[1748186501718,0.09254556,106850.0,106840.0,0.01651214]
[1748186501923,0.09654556,106850.0,106840.0,0.05571214]
[1748186502254,0.09654556,106850.0,106840.0,0.39571214]
[1748186502473,0.09654556,106850.0,106840.0,0.78568514]
[1748186502679,0.09654556,106850.0,106840.0,0.77465014]
[1748186503335,0.09654556,106850.0,106840.0,0.69685014]
[1748186503539,0.09654556,106850.0,106840.0,0.05571214]
[1748186503748,0.1716594,106850.0,106840.0,0.01651214]
[1748186504368,0.19037608,106850.0,106840.0,0.01651214]
[1748186504583,0.1716594,106850.0,106840.0,0.01651214]
[1748186504794,0.17458457,106850.0,106840.0,0.01651214]
[1748186505862,0.09947073,106850.0,106840.0,0.05621214]
[1748186506681,0.09654556,106850.0,106840.0,0.05621214]
[1748186507109,0.09654556,106850.0,106840.0,0.02823972]
[1748186507313,0.09654556,106850.0,106830.0,0.0198]
[1748186507489,0.08954556,106840.0,106830.0,0.35985034]
[1748186509274,0.09154556,106840.0,106830.0,0.01985034]
[1748186509476,0.09154556,106840.0,106830.0,0.35985034]
[1748186510180,0.09154556,106840.0,106830.0,0.37975034]
[1748186510388,0.09254556,106840.0,106830.0,0.37975034]
[1748186510807,0.09547067,106840.0,106830.0,0.37975034]
[1748186511214,0.1141891,106840.0,106830.0,5.034e-05]
[1748186511424,0.10482975,106840.0,106830.0,5.034e-05]
[1748186511627,0.10190456,106840.0,106830.0,5.034e-05]
[1748186511805,0.11126364,106840.0,106830.0,5.034e-05]
[1748186512033,0.09254556,106840.0,106820.0,0.31605078]
[1748186512382,0.08954556,106830.0,106820.0,0.03979405]
[1748186513281,0.08954556,106830.0,106820.0,0.61286705]
[1748186513489,0.08954556,106830.0,106820.0,0.53265705]
[1748186513693,0.08954556,106830.0,106820.0,0.24114605]
[1748186514253,0.09054556,106830.0,106820.0,0.15606505]
[1748186514488,0.09054556,106830.0,106820.0,0.03979405]
[1748186514691,0.09054556,106830.0,106820.0,0.14414505]
[1748186515021,0.09154556,106830.0,106820.0,0.14414505]
[1748186515225,0.09154556,106830.0,106820.0,0.48414505]
[1748186515575,0.09154556,106830.0,106820.0,0.45598464]
[1748186516084,0.09154556,106830.0,106820.0,0.35163364]
[1748186518350,0.10042687,106830.0,106820.0,0.31721702]
[1748186518595,0.10042687,106830.0,106820.0,0.33631702]
[1748186519704,0.10042687,106830.0,106820.0,0.27324919]
[1748186519885,0.10042687,106830.0,106820.0,0.0191]
[1748186520604,0.10042687,106830.0,106810.0,0.19503]
[1748186520809,0.13786794,106830.0,106810.0,0.00052041]
[1748186521010,0.09247101,106820.0,106810.0,0.00052041]
[1748186521820,0.45891143,106820.0,106810.0,0.00052041]
[1748186522018,0.47478578,106820.0,106810.0,0.00052041]
[1748186522246,0.49368578,106820.0,106810.0,0.00052041]
[1748186522447,0.47478578,106820.0,106810.0,0.00052041]
[1748186522650,0.50484478,106820.0,106810.0,0.00052041]
[1748186522810,0.49492609,106820.0,106800.0,0.02967411]
[1748186523006,0.08954556,106810.0,106800.0,0.02976834]
[1748186523253,0.4646594,106810.0,106800.0,0.02976834]
[1748186523617,0.1646594,106810.0,106800.0,0.02976834]
[1748186523821,0.11308773,106810.0,106800.0,0.02976834]
[1748186524009,0.11308773,106810.0,106800.0,0.06926834]
[1748186524432,0.11308773,106810.0,106800.0,1.26664619]
[1748186524657,0.11308773,106810.0,106800.0,0.72247219]
[1748186525030,0.11408773,106810.0,106800.0,0.72247219]
[1748186525245,0.11144491,106810.0,106800.0,0.87199219]
[1748186525900,0.02189935,106810.0,106800.0,0.87199219]
[1748186526306,0.11144491,106810.0,106800.0,0.68763134]
[1748186526482,0.11144491,106810.0,106800.0,0.02976834]
[1748186526689,0.11144491,106810.0,106800.0,0.36976834]
[1748186527088,0.11144491,106810.0,106800.0,0.58012834]
[1748186527342,0.10042687,106810.0,106800.0,0.58012834]
[1748186528608,0.10042687,106810.0,106800.0,2.55899539]
[1748186528820,0.10042687,106810.0,106800.0,2.52535369]
[1748186529244,0.01088131,106810.0,106800.0,2.52535369]
[1748186530284,0.01088131,106810.0,106800.0,2.4909296]
[1748186530689,0.02568364,106810.0,106800.0,2.4909296]
[1748186531642,0.03578483,106810.0,106800.0,2.6404496]
[1748186531852,0.03578483,106810.0,106800.0,2.2805696]
[1748186531853,0.0199825,106810.0,106800.0,2.2805696]
[1748186532064,0.0219825,106810.0,106800.0,2.6404496]
[1748186533063,0.0219825,106810.0,106800.0,2.61229087]
[1748186533620,0.02568364,106810.0,106800.0,2.61229087]
[1748186534537,0.05170609,106810.0,106800.0,2.61229087]
[1748186535966,0.02568364,106810.0,106800.0,2.61229087]
[1748186536945,0.02198542,106810.0,106800.0,2.61229087]
[1748186537203,0.04800107,106810.0,106800.0,2.61229087]
[1748186537620,0.10478494,106850.0,106820.0,0.05604085]
[1748186537829,0.10478494,106850.0,106840.0,0.03434085]
[1748186538052,0.10478494,106850.0,106840.0,2.02673985]
[1748186538053,0.22035048,106850.0,106840.0,2.02673985]
[1748186538256,0.22685735,106850.0,106840.0,2.02673985]
[1748186538665,0.22885735,106850.0,106840.0,2.02673985]
[1748186538876,0.15374351,106850.0,106840.0,2.02673985]
[1748186539085,0.11756554,106850.0,106840.0,2.02689119]
[1748186539311,0.11956554,106850.0,106840.0,2.02689119]
[1748186539497,0.12256554,106850.0,106840.0,2.36689119]
[1748186540669,0.12256554,106850.0,106840.0,2.34519119]
[1748186540891,0.12256554,106850.0,106840.0,0.00015134]
[1748186541237,0.12256554,106850.0,106830.0,0.14952]
[1748186541411,0.08954556,106840.0,106830.0,0.14952]
[1748186541614,0.11556554,106840.0,106830.0,0.48952]
[1748186541812,0.11556554,106840.0,106830.0,1.151074]
[1748186542014,0.11556554,106840.0,106830.0,0.609246]
[1748186542558,0.11556554,106840.0,106830.0,0.341]
[1748186542691,0.11756554,106840.0,106830.0,0.7018]
[1748186543770,0.11756554,106840.0,106830.0,0.7008]
[1748186544208,0.12056554,106840.0,106830.0,0.7018]
[1748186544426,0.23598336,106840.0,106830.0,0.7018]
[1748186545024,0.23598336,106840.0,106830.0,0.67990245]
[1748186546830,0.24568245,106840.0,106830.0,0.67990245]
[1748186547452,0.24568245,106840.0,106830.0,0.6454913]
[1748186547679,0.24568245,106840.0,106830.0,1.3187193]
[1748186547808,0.24568245,106840.0,106830.0,0.7657353]
[1748186548437,0.24568245,106840.0,106830.0,0.77445053]
[1748186549372,0.16736836,106840.0,106830.0,0.6454913]
[1748186549811,0.16736836,106840.0,106830.0,0.2856913]
[1748186550018,0.26112654,106840.0,106830.0,0.002]
[1748186550222,0.27048606,106840.0,106830.0,0.002]
[1748186550423,0.56112628,106840.0,106810.0,0.14948]
[1748186550577,0.13217112,106830.0,106800.0,0.36851674]
[1748186550946,0.13217112,106830.0,106800.0,0.21908713]
[1748186550947,0.09247112,106820.0,106800.0,0.21908713]
[1748186551122,0.11845109,106820.0,106800.0,0.21908713]
[1748186551342,0.13685109,106820.0,106800.0,0.21908713]
[1748186551675,0.0029258,106810.0,106800.0,0.21908713]
[1748186552023,0.09247136,106810.0,106800.0,0.21137039]
[1748186552232,0.10133365,106810.0,106800.0,0.21037039]
[1748186552429,0.10133365,106810.0,106800.0,0.21137039]
[1748186552814,0.10133365,106810.0,106800.0,0.21037039]
[1748186553012,0.10133365,106810.0,106800.0,5.039e-05]
[1748186553219,0.10133365,106810.0,106800.0,0.00105039]
[1748186553622,0.10133365,106810.0,106800.0,5.039e-05]
[1748186553830,0.09940785,106810.0,106800.0,0.31871524]
[1748186554035,0.10140785,106810.0,106800.0,1.01855524]
[1748186554743,0.10140785,106810.0,106800.0,0.78809524]
[1748186554944,0.13251873,106810.0,106800.0,0.52457124]
[1748186555176,0.13251873,106810.0,106800.0,0.65600124]
[1748186555372,0.13251873,106810.0,106800.0,0.50407124]
[1748186555569,0.13251873,106810.0,106800.0,0.34005039]
[1748186556233,0.12365644,106810.0,106800.0,0.34005039]
[1748186556999,0.12658232,106810.0,106800.0,0.34005039]
[1748186557403,0.16818684,106810.0,106800.0,0.34005039]
[1748186557844,0.16526096,106810.0,106800.0,0.34005039]
[1748186558924,0.15639867,106810.0,106800.0,0.34005039]
[1748186560090,0.09254556,106810.0,106800.0,0.34005039]
[1748186561409,0.13584556,106810.0,106800.0,0.34005039]
[1748186561571,0.09254556,106810.0,106800.0,5.039e-05]
[1748186561776,0.13584556,106810.0,106800.0,5.039e-05]
[1748186562173,0.15406956,106810.0,106800.0,5.039e-05]
[1748186562446,0.15206956,106810.0,106800.0,5.039e-05]
[1748186562637,0.17079378,106810.0,106800.0,5.039e-05]
[1748186562848,0.16743154,106810.0,106800.0,5.039e-05]
[1748186563049,0.14770785,106810.0,106800.0,5.039e-05]
[1748186563390,0.30322785,106810.0,106770.0,0.74744235]
[1748186563597,0.08954556,106790.0,106780.0,0.00050544]
[1748186564949,0.09454556,106790.0,106780.0,0.00050544]
[1748186565537,0.09854556,106790.0,106780.0,1.31037329]
[1748186565744,0.09854556,106790.0,106780.0,1.18516329]
[1748186565944,0.09854556,106790.0,106780.0,1.12772244]
[1748186566155,0.09854556,106790.0,106780.0,0.24834444]
[1748186566356,0.09854556,106790.0,106780.0,0.30578529]
[1748186567816,0.09854556,106790.0,106780.0,0.64578529]
[1748186569394,0.09854556,106790.0,106780.0,0.39794629]
[1748186569654,0.09854556,106790.0,106780.0,0.00050544]
[1748186569814,0.09854556,106790.0,106780.0,0.34050544]
[1748186573053,0.09854556,106790.0,106780.0,0.86892644]
[1748186573575,0.09854556,106790.0,106780.0,0.89042644]
[1748186576193,0.09854556,106790.0,106780.0,0.70342344]
[1748186576403,0.09854556,106790.0,106780.0,0.45784044]
[1748186576611,0.09854556,106790.0,106780.0,0.44954044]
[1748186579817,0.10740785,106790.0,106780.0,0.44954044]
[1748186580800,0.10740785,106790.0,106780.0,0.34050544]
[1748186583813,0.14850785,106790.0,106780.0,0.34050544]
[1748186584352,0.15143445,106790.0,106780.0,0.34050544]
[1748186584548,0.13053445,106790.0,106780.0,0.34050544]
[1748186585004,0.15143445,106790.0,106780.0,0.34050544]
[1748186585168,0.13053445,106790.0,106780.0,0.34050544]
[1748186585588,0.13704132,106790.0,106780.0,0.34050544]
[1748186585791,0.26640132,106790.0,106780.0,0.34050544]
[1748186586005,0.26347472,106790.0,106780.0,0.34050544]
[1748186586215,0.26347472,106790.0,106780.0,0.00050544]
[1748186586216,0.30767472,106790.0,106780.0,0.00050544]
[1748186586692,0.28557472,106790.0,106780.0,0.00050544]
[1748186587735,0.13601472,106790.0,106780.0,0.00050544]
[1748186587867,0.13894142,106790.0,106760.0,0.39714085]
[1748186588205,0.13944381,106790.0,106780.0,0.34]
[1748186588536,0.11734381,106790.0,106780.0,0.34]
[1748186588710,0.10834381,106790.0,106780.0,0.34]
[1748186588918,0.11034381,106790.0,106780.0,0.34]
[1748186589147,0.11134381,106790.0,106770.0,0.0435]
[1748186589476,0.10934381,106790.0,106780.0,0.34]
[1748186589681,0.11334381,106790.0,106780.0,0.34]
[1748186589898,0.11041711,106790.0,106780.0,0.34]
[1748186590325,0.11441711,106790.0,106770.0,0.0435]
[1748186590535,0.11441711,106790.0,106770.0,0.0458412]
[1748186590956,0.11734361,106790.0,106770.0,0.0458412]
[1748186591372,0.11234361,106790.0,106770.0,0.0458412]
[1748186591604,0.10941711,106790.0,106780.0,0.362]
[1748186591775,0.10841711,106790.0,106780.0,0.362]
[1748186592144,0.11141711,106790.0,106780.0,0.362]
[1748186592557,0.10541711,106790.0,106780.0,0.022]
[1748186592781,0.11041711,106790.0,106780.0,0.022]
[1748186593053,0.11441711,106790.0,106780.0,0.022]
[1748186593261,0.11441711,106790.0,106770.0,0.53610112]
[1748186593448,0.11441711,106790.0,106770.0,0.53376]
[1748186593647,0.11441711,106790.0,106770.0,0.3842]
[1748186594098,0.00292667,106780.0,106770.0,0.34]
[1748186594303,0.09247223,106780.0,106770.0,0.362]
[1748186594516,0.08954556,106780.0,106770.0,0.923085]
[1748186594725,0.08954556,106780.0,106770.0,0.93762585]
[1748186595279,0.09840785,106780.0,106770.0,0.93762585]
[1748186595484,0.10140785,106780.0,106770.0,0.93762585]
[1748186596520,0.10440785,106780.0,106770.0,0.93762585]
[1748186597506,0.10440785,106780.0,106770.0,1.29326585]
[1748186597845,0.16845124,106780.0,106770.0,1.29326585]
[1748186599831,0.16845124,106780.0,106770.0,0.93762585]
[1748186600038,0.16845124,106780.0,106770.0,1.29326585]
[1748186601005,0.01486229,106780.0,106770.0,1.31928958]
[1748186601192,0.006,106780.0,106770.0,1.31928958]
[1748186601468,0.006,106780.0,106770.0,1.29326585]
[1748186602077,0.006,106780.0,106770.0,0.93762585]
[1748186602282,0.003,106780.0,106770.0,1.29326585]
[1748186602488,0.004,106780.0,106770.0,1.29326585]
[1748186602689,0.001,106780.0,106770.0,1.29326585]
[1748186602892,0.001,106780.0,106770.0,1.29426585]
[1748186603101,0.002,106780.0,106770.0,1.29426585]
[1748186603715,0.002,106780.0,106770.0,1.14470585]
[1748186603926,0.002,106780.0,106770.0,1.29426585]
[1748186605064,0.002,106780.0,106770.0,0.93862585]
[1748186605283,0.002,106780.0,106770.0,1.29422585]
[1748186606474,0.14812975,106810.0,106780.0,0.05774085]
[1748186606713,0.08954556,106800.0,106790.0,1.547335]
[1748186606846,0.08954556,106800.0,106790.0,1.40427]
[1748186607048,0.08954556,106800.0,106790.0,1.44001085]
[1748186607254,0.08954556,106800.0,106790.0,1.29491385]
[1748186607464,0.08954556,106800.0,106790.0,1.50095385]
[1748186607664,0.08954556,106800.0,106790.0,0.798263]
[1748186608083,0.08954556,106800.0,106790.0,0.85600385]
[1748186608284,0.09254556,106800.0,106790.0,0.85600385]
[1748186609509,0.09554556,106800.0,106790.0,0.85600385]
[1748186613474,0.09554556,106800.0,106790.0,0.85596385]
[1748186613725,0.09554556,106800.0,106790.0,0.50040385]
[1748186613961,0.09554556,106800.0,106790.0,0.71010085]
[1748186614191,0.09554556,106800.0,106790.0,0.83433985]
[1748186614398,0.09554556,106800.0,106790.0,0.82028885]
[1748186614599,0.09554556,106800.0,106790.0,0.46472885]
[1748186616838,0.09554556,106800.0,106790.0,0.34]
[1748186617013,0.09554556,106800.0,106780.0,0.20613457]
[1748186617211,0.08954556,106790.0,106780.0,0.24307542]
[1748186617423,0.08954556,106790.0,106780.0,1.08080742]
[1748186617628,0.08954556,106790.0,106780.0,1.04680742]
[1748186618238,0.08954556,106790.0,106780.0,0.82673742]
[1748186618448,0.08954556,106790.0,106780.0,0.58935842]
[1748186618654,0.08954556,106790.0,106780.0,0.67909042]
[1748186618883,0.09054556,106790.0,106780.0,0.50515542]
[1748186619347,0.08675655,106790.0,106780.0,0.50515542]
[1748186619976,0.08775655,106790.0,106780.0,0.50615542]
[1748186621135,0.08775655,106790.0,106780.0,0.63956842]
[1748186621633,0.08775655,106790.0,106780.0,0.49004842]
[1748186622335,0.09663824,106790.0,106780.0,0.45805842]
[1748186623599,0.09663824,106790.0,106780.0,0.34209457]
[1748186624950,0.09663824,106790.0,106780.0,0.00209457]
[1748186624951,0.74578391,106790.0,106780.0,0.00209457]
[1748186625164,1.42501329,106790.0,106780.0,0.00209457]
[1748186625389,1.4096561,106790.0,106780.0,0.00209457]
[1748186625589,0.5569376,106790.0,106780.0,0.00209457]
[1748186625742,0.49018731,106790.0,106780.0,0.00109457]
[1748186625947,0.49955104,106790.0,106780.0,0.00109457]
[1748186626156,0.50655104,106790.0,106780.0,9.457e-05]
[1748186626323,0.47746029,106790.0,106780.0,9.457e-05]
[1748186626537,0.15844511,106790.0,106780.0,9.457e-05]
[1748186626745,0.11514511,106790.0,106780.0,0.0261183]
[1748186626948,0.10863824,106790.0,106780.0,9.457e-05]
[1748186627172,0.11156482,106790.0,106780.0,9.457e-05]
[1748186627773,0.10863824,106790.0,106780.0,9.457e-05]
[1748186628367,0.11156465,106790.0,106780.0,9.457e-05]
[1748186628870,0.1756165,106790.0,106770.0,0.00234126]
[1748186629068,0.17576708,106790.0,106770.0,0.04564126]
[1748186629273,0.17576708,106790.0,106770.0,0.0433]
[1748186629676,0.16876708,106790.0,106760.0,0.5629]
[1748186629876,0.08954556,106780.0,106760.0,0.5414]
[1748186630224,0.08954556,106780.0,106760.0,0.2014]
[1748186630225,0.13184556,106780.0,106760.0,0.2014]
[1748186630360,0.13184556,106780.0,106750.0,0.42007936]
[1748186630759,0.13184556,106780.0,106760.0,0.34]
[1748186631427,0.04552699,106770.0,106750.0,0.01127851]
[1748186631584,0.13507265,106770.0,106750.0,0.01127851]
[1748186631829,0.13507265,106770.0,106750.0,0.01227851]
[1748186632226,0.13507265,106770.0,106750.0,0.00121]
[1748186632683,0.0426,106760.0,106750.0,0.00221]
[1748186632885,0.13214556,106760.0,106750.0,0.00221]
[1748186634003,0.13214556,106760.0,106750.0,0.00121]
[1748186634187,0.13514556,106760.0,106750.0,0.00121]
[1748186634402,0.11644556,106760.0,106750.0,0.00221]
[1748186634845,0.09454556,106760.0,106750.0,0.07093373]
[1748186635050,0.09454556,106760.0,106750.0,0.02351]
[1748186635277,0.09454556,106760.0,106750.0,0.00221]
[1748186635912,0.09747288,106760.0,106750.0,0.00221]
[1748186636551,0.14007288,106760.0,106750.0,0.00221]
[1748186636780,0.17291751,106760.0,106750.0,0.00221]
[1748186636990,0.16817172,106760.0,106750.0,0.00221]
[1748186637205,0.15880543,106760.0,106750.0,0.00221]
[1748186637420,0.14595493,106760.0,106750.0,0.00221]
[1748186637862,0.14395493,106760.0,106750.0,0.00121]
[1748186638323,0.14902725,106760.0,106750.0,0.00121]
[1748186638749,0.14502725,106760.0,106750.0,0.00121]
[1748186638960,0.13614556,106760.0,106750.0,0.00121]
[1748186639187,0.14114556,106760.0,106750.0,0.00121]
[1748186639613,0.13714556,106760.0,106750.0,0.00121]
[1748186639815,0.15443925,106760.0,106750.0,0.00121]
[1748186640023,0.14507324,106760.0,106750.0,0.00121]
[1748186640713,0.12034556,106760.0,106750.0,0.00121]
[1748186640947,0.09954556,106760.0,106750.0,0.00121]
[1748186641387,0.10247322,106760.0,106750.0,0.00121]
[1748186641847,0.09954556,106760.0,106750.0,0.00121]
[1748186642326,0.102473,106760.0,106750.0,0.00121]
[1748186642574,0.102473,106760.0,106750.0,0.02271]
[1748186643033,0.102473,106760.0,106750.0,0.00121]
[1748186643289,0.09954556,106760.0,106750.0,0.02271]
[1748186643517,0.09954556,106760.0,106750.0,1.144532]
[1748186644163,0.09954556,106760.0,106750.0,0.697499]
[1748186644385,0.09954556,106760.0,106750.0,0.663069]
[1748186644842,0.09954556,106760.0,106750.0,0.812669]
[1748186645061,0.09954556,106760.0,106750.0,0.661539]
[1748186645255,0.09954556,106760.0,106750.0,0.640079]
[1748186645511,0.09954556,106760.0,106750.0,0.661559]
[1748186645743,0.09954556,106760.0,106750.0,0.67609985]
[1748186646390,0.09954556,106760.0,106750.0,0.52649985]
[1748186646530,0.09954556,106760.0,106750.0,0.67609985]
[1748186646734,0.09954556,106760.0,106750.0,0.54855085]
[1748186646943,0.09954556,106760.0,106750.0,1.38849785]
[1748186647200,0.09954556,106760.0,106750.0,1.23495685]
[1748186648394,0.09954556,106760.0,106750.0,1.16625185]
[1748186648611,0.09954556,106760.0,106750.0,0.54855085]